[Event "CCT Chesscom Classic-D1 2024"]
[Site "Online"]
[Date "2024.05.12"]
[Round "52"]
[White "Duda, Jan-Krzysztof"]
[Black "Nepomniachtchi, Ian"]
[Result "0-1"]
[ECO "A85"]
[WhiteElo "2734"]
[BlackElo "2770"]
[Annotator "TA"]
[PlyCount "88"]
[EventDate "2024.05.08"]
[EventType "k.o."]
[EventCountry "NET"]
[SourceTitle "playchess.com"]
[Source "ChessBase"]
[SourceQuality "1"]
[TimeControl "600+2"]

{[%evp 19,88,65,87,64,89,67,137,93,106,102,111,78,79,86,101,47,35,30,41,0,0,0,0,0,0,0,7,35,20,0,9,5,12,8,8,16,17,11,61,0,58,0,0,0,0,0,0,0,41,39,280,-56,-27,-167,-132,-122,-114,-197,-127,-545,-536,-568,-546,-746,-723,-29974,-29966,-29987,-29988,-29988,-29989]} 1. d4 {[%emt 0:00:04]} d6 {[%emt 0:00:03]} 2. Nf3 {[%emt 0:00:05]} f5 {[%emt 0:00:01]} 3. Bf4 {[%emt 0:00:06]} Nf6 {[%emt 0:00:03]} 4. e3 {[%emt 0:00:03]} g6 {[%emt 0:00:03]} 5. h3 {[%emt 0:00:03]} Bg7 {[%emt 0:00:01]} 6. Be2 {[%emt 0:00:02]} h6 {[%emt 0:00:12]} 7. Bh2 {[%emt 0:00:09]} O-O {[%emt 0:00:13]} 8. c4 {[%emt 0:00:14][%cal Bc2c4,Bc4c5][%mdl 32]} c6 {[%emt 0:00:13]} 9. Nc3 {[%emt 0:00:03]} Nbd7 {[%emt 0:00:13]} 10. O-O {[%emt 0:00:13]} Qe8 {[%emt 0:00:05]} 11. b4 {[%emt 0:00:18]} g5 {[%emt 0:00:07]} 12. c5 {[%emt 0:00:30]} g4 {[%emt 0:00:46]} (12... Ne4 $14) 13. hxg4 {[%emt 0:00:00] White is clearly better.} Nxg4 {[%emt 0:00:03]} 14. Bg3 {[%emt 0:01:03]} d5 {[%emt 0:00:04]} 15. Nh4 {[%emt 0:00:30][%cal Oh4f5]} Ndf6 {[%emt 0:00:17]} 16. Rc1 {[%emt 0:00:11]} Nh5 {[%emt 0:02:21] [#]} 17. Be5 {[%emt 0:01:27]} Bxe5 $14 {[%emt 0:00:33]} 18. dxe5 {[%emt 0:00:00]} Ng7 $1 {[%emt 0:00:01]} 19. Nxf5 {[%emt 0:00:35]} Rxf5 {[%emt 0:00:13]} 20. Bxg4 {[%emt 0:00:02]} Rxe5 {[%emt 0:00:01]} 21. Bxc8 {[%emt 0:00:21]} Rxc8 {[%emt 0:00:03]} 22. e4 {[%emt 0:00:00]} e6 {[%emt 0:01:10]} (22... dxe4 23. Qd4 Re6 24. Rcd1 $14 (24. Nxe4 Rd8 $16)) 23. f4 {[%emt 0:00:25][%cal Bf2f4,Bf4f5][%mdl 32]} Rh5 {[%emt 0:00:03]} 24. Qf3 $36 {[%emt 0:00:03][%cal Of4f5][%mdl 2048] Black is under pressure.} Qg6 {[%emt 0:00:04] [#]} 25. f5 $1 {[%emt 0:00:36]} Qf6 {[%emt 0:00:34]} 26. fxe6 {[%emt 0:00:19]} Qe5 {[%emt 0:00:32]} 27. Qf4 {[%emt 0:00:33]} (27. exd5 $2 Qh2+ 28. Kf2 Rf8 $19) 27... d4 {[%emt 0:00:09] The board is on fire.} 28. Ne2 {[%emt 0:00:15]} Nxe6 {[%emt 0:00:07]} (28... Qxf4 $11 29. Nxf4 Re5) 29. Qf7+ {[%emt 0:00:28]} Kh8 {[%emt 0:00:03][%cal Bg8h8,Bh8h7,Bh7g6][%mdl 32]} 30. Qf6+ {[%emt 0:00:00]} (30. Qxb7 $2 Rg8 31. Rf2 d3 $19 (31... Qxe4 $2 32. Qf7 $19)) (30. Ng3 $1 $14 Rh3 (30... Qxg3 $2 31. Qxh5 Qe3+ 32. Kh1 $18) 31. Qf5 (31. gxh3 $2 Qxg3+ 32. Kh1 Qxh3+ 33. Kg1 Rg8+ $19) 31... Qxf5 32. Nxf5 (32. exf5 Rxg3 33. fxe6 Re3 $11)) 30... Kh7 $11 {[%emt 0:00:15]} 31. Qxe5 {[%emt 0:00:09]} Rxe5 {[%emt 0:00:00]} 32. Rf7+ {[%emt 0:00:01]} Kg6 {[%emt 0:00:21]} 33. Rcf1 {[%emt 0:00:40]} d3 {[%emt 0:00:02]} 34. Nc3 {[%emt 0:00:15][%cal Of7f5] R7f5! would now be deadly.} Rd8 $2 {[%emt 0:00:18]} (34... Re8 $14) 35. Rxb7 $2 {[%emt 0:00:11]} ({White has to play} 35. R7f5 $1 $18 {[%cal Rf5e5]} Rxf5 36. exf5+ Kf7 37. fxe6+ Kxe6 38. Re1+ Kf5 39. Kf2) 35... d2 {[%emt 0:00:03]} 36. Rxa7 {[%emt 0:00:08]} (36. Re7 $11 {and White is okay.}) 36... Rd3 {[%emt 0:00:02]} 37. Nd1 {[%emt 0:00:01]} (37. Ra3 $2 Nd4 (37... Ng5 38. Rd1 $17) 38. Rd1 Nc2 $19 (38... Ne2+ 39. Nxe2 Rxa3 40. Rxd2 $11)) 37... Rxe4 {[%emt 0:00:07][%cal Oe4e1] aiming for ...Re1!} 38. Re7 {[%emt 0:00:03] [#]} (38. Raf7 $17) 38... Re2 {[%emt 0:00:21]} (38... Rd5 $1 $19 {[%cal Oe4e1] Threatens to win with ...Re1!} 39. Ref7 Re1 (39... Rxb4 $2 {is the wrong capture.} 40. R7f6+ Kh5 41. Rxe6 $18) 40. R7f6+ Kh5) 39. a4 $2 {[%emt 0:00:31][%mdl 8192]} (39. b5 $17 cxb5 40. Re8) 39... Rg3 $19 {[%emt 0:00:26]} 40. Rf2 {[%emt 0:00:01]} Re1+ {[%emt 0:00:10]} 41. Rf1 {[%emt 0:00:13] [#]} Rg4 $1 {[%emt 0:00:19]} 42. Rd7 {[%emt 0:00:32]} Rf4 {[%emt 0:00:03] Black mates.} ({Not} 42... Rxb4 43. Rxd2 Rxf1+ 44. Kxf1 $17) 43. Nf2 {[%emt 0:00:02]} Nd4 {[%emt 0:00:05]} ({Weaker is} 43... Rxb4 44. Rxd2 Rxf1+ 45. Kxf1 $11) 44. Rd6+ {[%emt 0:00:05]} Kh5 {[%emt 0:00:10] Weighted Error Value: White=0.68/Black=0.21 (precise) .  Loses game:     	White=1     	Black=1      Missed win:     	White=1     	---        Mistake:       	White=4     	Black=3      Inaccurate:     	White=4     	Black=3      OK:         	White=8     	Black=6      Best:        	White=3     	Black=5      Strong:       	---       	Black=2} 0-1

[Event "CCT Chesscom Classic-D1 2024"]
[Site "Online"]
[Date "2024.05.12"]
[Round "52"]
[White "Lazavik, Denis"]
[Black "Firouzja, Alireza"]
[Result "0-1"]
[ECO "D02"]
[WhiteElo "2572"]
[BlackElo "2738"]
[Annotator "TA"]
[PlyCount "72"]
[EventDate "2024.05.08"]
[EventType "k.o."]
[EventCountry "NET"]
[SourceTitle "playchess.com"]
[Source "ChessBase"]
[SourceQuality "1"]
[TimeControl "600+2"]

{[%evp 9,72,0,39,54,30,36,51,53,66,0,21,17,15,24,17,0,0,0,0,0,0,-77,-43,-41,-23,-156,-146,-155,-159,-162,-163,-175,-167,-312,-314,-304,-297,-303,-288,-320,-337,-317,-307,-374,-353,-462,-472,-422,-471,-464,-370,-392,-428,-414,-402,-388,-382,-388,-396,-612,-597,-635,-635,-612,-606]} 1. d4 {[%emt 0:00:02]} d5 {[%emt 0:00:10]} 2. Nf3 {[%emt 0:00:02]} Nf6 {[%emt 0:00:02]} 3. Bf4 {[%emt 0:00:01]} Bf5 {[%emt 0:00:52]} 4. c4 {[%emt 0:00:10]} e6 {[%emt 0:00:03]} 5. Qb3 {[%emt 0:00:01]} dxc4 {[%emt 0:00:11]} 6. Qxb7 {[%emt 0:00:01]} Be4 {[%emt 0:00:01]} 7. Qxc7 {[%emt 0:00:01]} Qxc7 {[%emt 0:00:07]} 8. Bxc7 {[%emt 0:00:05] White is slightly better.} Bb4+ {[%emt 0:00:15]} 9. Nfd2 {[%emt 0:02:45]} (9. Kd1 $14) 9... Nc6 {[%emt 0:00:49][%cal Oa8c8,Bb8c6,Bc6d4,Bd4c2][%mdl 32] [#] ...Rc8! would now be deadly.} 10. Nc3 $1 {[%emt 0:02:26] aiming for a3.} Nxd4 {[%emt 0:00:03] And now ...Bxc3 would win.} 11. Rc1 {[%emt 0:00:15]} Bg6 {[%emt 0:01:49]} 12. Be5 {[%emt 0:01:51]} (12. e4 {simplifies} Rc8 13. Be5 Nc6 14. Bxf6 gxf6 15. Bxc4 O-O 16. a3) 12... Nc2+ {[%emt 0:00:34]} 13. Kd1 {[%emt 0:00:02]} Ng4 {[%emt 0:00:08][%csl LRe5,LRf2]} 14. Bg3 {[%emt 0:00:05]} Bd6 $1 {[%emt 0:01:19] [#] Hoping for ...Bxg3.} 15. Nce4 {[%emt 0:02:00]} (15. Bxd6 $2 Nxf2#) (15. Rxc2 $2 Bxg3 16. fxg3 Ne3+ (16... Bxc2+ 17. Kxc2 Ne3+ 18. Kc1 $16) 17. Kc1 Bxc2 18. Nxc4 Nxc4 $19) (15. Bh4 $11 Be7 (15... Nxh2 $2 16. Nce4 $18) 16. Bg3) 15... Bxg3 $40 {[%emt 0:00:01][%mdl 128] Black attacks.} 16. hxg3 {[%emt 0:00:01]} f5 {[%emt 0:00:00]} 17. Kxc2 {[%emt 0:00:40] White is on the road to losing.} (17. Rxc2 $2 {perishes.} fxe4 18. Rh4 (18. Nxc4 $2 Nxf2+ 19. Ke1 Nxh1 $19) (18. Ke1 $2 e3 $19) 18... Nxf2+ 19. Ke1 e3 20. Nxc4 Bxc2 $19) (17. Rh4 $1 $11 {keeps the balance.} Nce3+ 18. fxe3) 17... fxe4 {[%emt 0:00:01]} 18. e3 {[%emt 0:00:00]} Nxf2 {[%emt 0:00:05]} 19. Rh4 {[%emt 0:00:01]} Nd3 {[%emt 0:00:33]} 20. Bxd3 {[%emt 0:00:01]} cxd3+ {[%emt 0:00:06]} ({Of course not} 20... exd3+ $6 21. Kc3 $15) 21. Kb3 {[%emt 0:00:02]} (21. Kd1 $142) 21... O-O $19 {[%emt 0:00:15]} 22. Rf4 {[%emt 0:00:02]} Rab8+ {[%emt 0:01:05]} 23. Ka3 {[%emt 0:00:01]} Rfc8 {[%emt 0:00:00] Prevents b3.} 24. Rc3 {[%emt 0:00:08]} e5 {[%emt 0:00:15]} 25. Rf1 {[%emt 0:00:01]} Rf8 {[%emt 0:00:01]} (25... Rxc3+ $2 26. bxc3 Rb6 27. c4 $19) 26. Rcc1 {[%emt 0:00:02]} Rxf1 {[%emt 0:00:15]} 27. Rxf1 {[%emt 0:00:02][%mdl 4096] Endgame. KRB-KRN} Rc8 {[%emt 0:00:00]} 28. g4 {[%emt 0:00:06]} Rc2 {[%emt 0:00:04]} 29. Rf2 {[%emt 0:00:03]} h5 {[%emt 0:00:07]} 30. gxh5 {[%emt 0:00:02]} Bxh5 {[%emt 0:00:00]} 31. b3 {[%emt 0:00:02]} Be2 {[%emt 0:00:06]} 32. Nxe4 {[%emt 0:00:00]} d2 {[%emt 0:00:00]} 33. Nxd2 {[%emt 0:00:02]} Rxd2 {[%emt 0:00:00]} 34. Rf5 {[%emt 0:00:03]} (34. e4 $142) 34... e4 {[%emt 0:00:04] Black is clearly winning.} 35. Re5 {[%emt 0:00:01]} Bd3 {[%emt 0:00:02]} 36. Ra5 {[%emt 0:00:02]} a6 {[%emt 0:00:01] Weighted Error Value: White=0.33/Black=0.09 (flawless) .  Mistake:       	White=5     	---        Inaccurate:     	White=1     	---        OK:         	White=13    	Black=10     Best:        	White=2     	Black=9      Strong:       	White=1     	Black=1} 0-1

[Event "CCT Chesscom Classic-D1 2024"]
[Site "Online"]
[Date "2024.05.13"]
[Round "53"]
[White "Firouzja, Alireza"]
[Black "Duda, Jan-Krzysztof"]
[Result "1-0"]
[ECO "A30"]
[WhiteElo "2738"]
[BlackElo "2734"]
[Annotator "TA"]
[PlyCount "59"]
[EventDate "2024.05.08"]
[EventType "k.o."]
[EventCountry "NET"]
[SourceTitle "playchess.com"]
[Source "ChessBase"]
[SourceQuality "1"]
[TimeControl "600+2"]

{[%evp 21,59,-10,-16,-4,-8,-42,-18,-66,-46,-80,-82,-93,-62,-56,-62,-52,-44,-43,-42,-41,-8,-6,-5,-6,-6,-16,-13,-49,-24,-32,-30,-50,-54,-39,-45,-43,-37,-49,826,826]} 1. Nf3 {[%emt 0:00:04]} Nf6 {[%emt 0:00:04]} 2. b3 {[%emt 0:00:03]} d5 {[%emt 0:06:33]} 3. Bb2 {[%emt 0:00:01]} e6 {[%emt 0:00:00]} 4. c4 {[%emt 0:00:07]} Be7 {[%emt 0:00:02]} 5. e3 {[%emt 0:00:25]} O-O {[%emt 0:00:01]} 6. Be2 {[%emt 0:00:08]} dxc4 {[%emt 0:00:11]} 7. bxc4 {[%emt 0:00:08]} b6 {[%emt 0:00:08]} 8. O-O {[%emt 0:00:15]} Bb7 {[%emt 0:00:02]} 9. Nc3 {[%emt 0:00:07]} c5 {[%emt 0:00:01]} 10. d4 {[%emt 0:00:05]} cxd4 {[%emt 0:00:07]} 11. exd4 {[%emt 0:00:01]} Nc6 {[%emt 0:00:27]} 12. Re1 {[%emt 0:00:12]} Rc8 {[%emt 0:00:26]} 13. Rc1 {[%emt 0:00:24]} Na5 {[%emt 0:00:04]} 14. Ne5 {[%emt 0:00:01]} (14. Nd2 $11) 14... Nd7 $15 {[%emt 0:00:09]} 15. Nxd7 {[%emt 0:05:16]} Qxd7 {[%emt 0:00:01]} 16. d5 {[%emt 0:00:02]} Nxc4 {[%emt 0:00:15]} 17. dxe6 {[%emt 0:00:17]} Qxd1 {[%emt 0:00:13]} 18. exf7+ {[%emt 0:00:21]} Kxf7 {[%emt 0:00:25]} 19. Bxc4+ {[%emt 0:00:39]} Rxc4 {[%emt 0:00:00]} 20. Rcxd1 {[%emt 0:00:01]} Rd8 {[%emt 0:00:33] Against Rd7} (20... Bc6 $5) 21. Rxd8 $1 {[%emt 0:00:07]} Bxd8 {[%emt 0:00:00] This pair of bishops is nice.} 22. Rd1 {[%emt 0:00:07]} Bf6 {[%emt 0:00:22]} 23. Nb5 {[%emt 0:00:14] [#] Nd6+ is the strong threat.} Be7 {[%emt 0:00:32] And now ...Rb4 would win.} (23... Bxb2 $2 24. Nd6+ (24. Nxa7 $2 Rc1 $19) 24... Ke6 25. Nxc4 $18) 24. h3 {[%emt 0:00:49]} Bc6 {[%emt 0:00:07] Inhibits Rd7.} ({Don't play} 24... Rb4 25. Ba3 Rxb5 26. Rd7 $14) 25. Nxa7 {[%emt 0:00:11]} Be8 {[%emt 0:00:02] ...Rc7 would now be deadly.} 26. Bd4 {[%emt 0:00:04]} b5 {[%emt 0:00:05][%mdl 1024] Black has compensation.} 27. Be3 {[%emt 0:00:08]} b4 {[%emt 0:00:02]} 28. Rd5 {[%emt 0:00:10]} Ke6 {[%emt 0:00:03]} 29. Ra5 {[%emt 0:00:03] [#]} Rc1+ $2 {[%emt 0:00:02][%mdl 8192]} 30. Bxc1 {[%emt 0:00:01] Weighted Error Value: White=0.09 (flawless) /Black=0.10 (very precise) .  Loses game:     	---       	Black=1      Mistake:       	White=1     	---        Inaccurate:     	White=3     	Black=2      OK:         	White=7     	Black=8      Best:        	White=2     	Black=2      Strong:       	White=1     	---} 1-0

[Event "CCT Chesscom Classic-D1 2024"]
[Site "Online"]
[Date "2024.05.13"]
[Round "53"]
[White "Duda, Jan-Krzysztof"]
[Black "Firouzja, Alireza"]
[Result "1/2-1/2"]
[ECO "E04"]
[WhiteElo "2734"]
[BlackElo "2738"]
[Annotator "RC"]
[PlyCount "201"]
[EventDate "2024.05.08"]
[EventType "k.o."]
[EventCountry "NET"]
[SourceTitle "playchess.com"]
[Source "ChessBase"]
[SourceQuality "1"]
[TimeControl "600+2"]

1. d4 {[%emt 0:00:03]} d5 {[%emt 0:00:04]} 2. c4 {[%emt 0:00:01]} e6 {[%emt 0:00:01]} 3. Nf3 {[%emt 0:00:02]} Nf6 {[%emt 0:00:02]} 4. g3 {[%emt 0:00:02]} dxc4 {[%emt 0:00:02]} 5. Bg2 {[%emt 0:00:01]} c5 {[%emt 0:00:01]} 6. O-O {[%emt 0:00:06]} Nc6 {[%emt 0:00:02]} 7. Qa4 {[%emt 0:00:01]} Bd7 {[%emt 0:00:11]} 8. Qxc4 {[%emt 0:00:02]} cxd4 {[%emt 0:00:17]} 9. Nxd4 {[%emt 0:00:00]} Rc8 {[%emt 0:00:03]} 10. Nc3 {[%emt 0:00:04]} Nxd4 {[%emt 0:00:03]} 11. Qxd4 {[%emt 0:00:00]} Bc5 {[%emt 0:00:01]} 12. Qh4 {[%emt 0:00:03]} Bc6 {[%emt 0:00:02]} 13. Rd1 {[%emt 0:00:34]} Qa5 {[%emt 0:00:07]} 14. Bxc6+ {[%emt 0:00:12]} Rxc6 {[%emt 0:00:03]} 15. Bg5 {[%emt 0:00:03]} Be7 {[%emt 0:00:17]} 16. Ne4 {[%emt 0:00:06]} Qe5 {[%emt 0:00:08]} 17. Nxf6+ {[%emt 0:00:10]} Bxf6 {[%emt 0:00:05]} 18. Bxf6 {[%emt 0:00:03]} Qxf6 {[%emt 0:00:03]} 19. Qxf6 {[%emt 0:00:01]} gxf6 {[%emt 0:00:00]} 20. Rac1 {[%emt 0:00:00]} Rxc1 {[%emt 0:00:05]} 21. Rxc1 {[%emt 0:00:00]} Kd7 {[%emt 0:00:01]} 22. Kg2 {[%emt 0:00:03]} Rg8 {[%emt 0:00:16]} 23. f4 {[%emt 0:01:08]} f5 {[%emt 0:00:23]} 24. Rc4 {[%emt 0:00:12]} Kd6 {[%emt 0:00:31]} 25. Ra4 {[%emt 0:00:08]} a6 {[%emt 0:01:37]} 26. Rd4+ {[%emt 0:00:02]} Ke7 {[%emt 0:00:13]} 27. Rc4 {[%emt 0:00:01]} Kd6 {[%emt 0:00:29]} 28. Kh3 {[%emt 0:00:03]} b5 {[%emt 0:00:41]} 29. Rc3 {[%emt 0:00:05]} Ke7 {[%emt 0:00:28]} 30. Kg2 {[%emt 0:01:32]} Rd8 {[%emt 0:00:02]} 31. Rc2 {[%emt 0:00:01]} Rd1 {[%emt 0:00:10]} 32. a3 {[%emt 0:00:10]} h5 {[%emt 0:01:09]} 33. Kf3 {[%emt 0:00:15]} Rb1 {[%emt 0:00:32]} 34. Ke3 {[%emt 0:00:18]} Kd6 {[%emt 0:00:06]} 35. Rd2+ {[%emt 0:00:23]} Ke7 {[%emt 0:00:19]} 36. Kd4 {[%emt 0:00:16]} Rc1 {[%emt 0:00:05]} 37. Kd3 {[%emt 0:00:48]} Kd6 {[%emt 0:00:14]} 38. b3 {[%emt 0:01:34]} a5 {[%emt 0:00:26]} 39. Ke3+ {[%emt 0:00:38]} Ke7 {[%emt 0:00:17]} 40. a4 {[%emt 0:00:07]} bxa4 {[%emt 0:00:16]} 41. bxa4 {[%emt 0:00:00]} Ra1 {[%emt 0:00:13]} 42. Rd4 {[%emt 0:00:02]} Ra3+ {[%emt 0:00:07]} 43. Kf2 {[%emt 0:00:00]} Ke8 {[%emt 0:00:19]} 44. Rc4 {[%emt 0:00:11]} Ke7 {[%emt 0:00:01]} 45. Kg2 {[%emt 0:00:36]} Ra2 {[%emt 0:00:06]} 46. Kh3 {[%emt 0:00:01]} Rxe2 {[%emt 0:00:11]} 47. Rc5 {[%emt 0:00:02]} Ra2 {[%emt 0:00:03]} 48. Rxa5 {[%emt 0:00:02]} Kf6 {[%emt 0:00:01]} 49. Ra8 {[%emt 0:00:03]} Kg7 {[%emt 0:00:03]} 50. a5 {[%emt 0:00:03]} Kh7 {[%emt 0:00:05]} 51. a6 {[%emt 0:00:03]} Kg7 {[%emt 0:00:02]} 52. a7 {[%emt 0:00:03]} f6 {[%emt 0:00:28]} 53. Re8 {[%emt 0:00:04]} Rxa7 {[%emt 0:00:01]} 54. Rxe6 {[%emt 0:00:00]} Ra2 {[%emt 0:00:00]} 55. Rb6 {[%emt 0:00:08]} Kg6 {[%emt 0:00:01]} 56. Rb8 {[%emt 0:00:01]} Kg7 {[%emt 0:00:02]} 57. Rb1 {[%emt 0:00:05]} Kg6 {[%emt 0:00:02]} 58. Rh1 {[%emt 0:00:01]} Ra8 {[%emt 0:00:17]} 59. Rg1 {[%emt 0:00:07]} Rb8 {[%emt 0:00:01]} 60. Rg2 {[%emt 0:00:02]} Ra8 {[%emt 0:00:01]} 61. Kh4 {[%emt 0:00:01]} Rb8 {[%emt 0:00:00]} 62. Rc2 {[%emt 0:00:02]} Ra8 {[%emt 0:00:01]} 63. Rb2 {[%emt 0:00:03]} Rc8 {[%emt 0:00:01]} 64. Kh3 {[%emt 0:00:10]} Ra8 {[%emt 0:00:02]} 65. Rd2 {[%emt 0:00:13]} Rb8 {[%emt 0:00:01]} 66. Kg2 {[%emt 0:00:01]} Ra8 {[%emt 0:00:01]} 67. Re2 {[%emt 0:00:19]} Rb8 {[%emt 0:00:01]} 68. Kf2 {[%emt 0:00:01]} Rb3 {[%emt 0:00:02]} 69. Rd2 {[%emt 0:00:22]} Ra3 {[%emt 0:00:02]} 70. Rb2 {[%emt 0:00:01]} Rc3 {[%emt 0:00:01]} 71. Ra2 {[%emt 0:00:01]} Rb3 {[%emt 0:00:01]} 72. Kg2 {[%emt 0:00:01]} Rb8 {[%emt 0:00:03]} 73. Ra3 {[%emt 0:00:02]} Rb2+ {[%emt 0:00:02]} 74. Kg1 {[%emt 0:00:02]} Rb8 {[%emt 0:00:05]} 75. h4 {[%emt 0:00:09]} Rb2 {[%emt 0:00:02]} 76. Re3 {[%emt 0:00:03]} Kf7 {[%emt 0:00:02]} 77. Kf1 {[%emt 0:00:00]} Ra2 {[%emt 0:00:01]} 78. Ke1 {[%emt 0:00:01]} Rb2 {[%emt 0:00:01]} 79. Kd1 {[%emt 0:00:01]} Ra2 {[%emt 0:00:01]} 80. Rb3 {[%emt 0:00:01]} Rg2 {[%emt 0:00:02]} 81. Kc1 {[%emt 0:00:03]} Kg6 {[%emt 0:00:02]} 82. Re3 {[%emt 0:00:02]} Kf7 {[%emt 0:00:01]} 83. Kd1 {[%emt 0:00:01]} Ra2 {[%emt 0:00:01]} 84. Ke1 {[%emt 0:00:03]} Rb2 {[%emt 0:00:01]} 85. Kf1 {[%emt 0:00:00]} Ra2 {[%emt 0:00:01]} 86. Rc3 {[%emt 0:00:01]} Rb2 {[%emt 0:00:00]} 87. Rc7+ {[%emt 0:00:01]} Kg6 {[%emt 0:00:01]} 88. Rc5 {[%emt 0:00:01]} Ra2 {[%emt 0:00:02]} 89. Ke1 {[%emt 0:00:06]} Rg2 {[%emt 0:00:03]} 90. Rc3 {[%emt 0:00:01]} Kf7 {[%emt 0:00:01]} 91. Re3 {[%emt 0:00:01]} Ra2 {[%emt 0:00:01]} 92. Kd1 {[%emt 0:00:03]} Rg2 {[%emt 0:00:03]} 93. Ke1 {[%emt 0:00:03]} Ra2 {[%emt 0:00:01]} 94. Re2 {[%emt 0:00:01]} Rxe2+ {[%emt 0:00:07]} 95. Kxe2 {[%emt 0:00:00]} Ke6 {[%emt 0:00:01]} 96. Ke3 {[%emt 0:00:02]} Kd5 {[%emt 0:00:01]} 97. Kd3 {[%emt 0:00:01]} Kc5 {[%emt 0:00:00]} 98. Kc3 {[%emt 0:00:00]} Kd5 {[%emt 0:00:01]} 99. Kd3 {[%emt 0:00:01]} Kc5 {[%emt 0:00:00]} 100. Kc3 {[%emt 0:00:09]} Kd5 {[%emt 0:00:01]} 101. Kd3 {[%emt 0:00:07]} 1/2-1/2

[Event "CCT Chesscom Classic-D1 2024"]
[Site "Online"]
[Date "2024.05.13"]
[Round "54"]
[White "Firouzja, Alireza"]
[Black "Keymer, Vincent"]
[Result "1-0"]
[ECO "A05"]
[WhiteElo "2738"]
[BlackElo "2726"]
[Annotator "TA"]
[PlyCount "109"]
[EventDate "2024.05.08"]
[EventType "k.o."]
[EventCountry "NET"]
[SourceTitle "playchess.com"]
[Source "ChessBase"]
[SourceQuality "1"]
[TimeControl "600+2"]

{[%evp 56,109,611,593,788,758,974,768,933,721,733,710,779,767,745,677,905,683,1013,981,1130,1111,1355,1075,1229,827,781,779,29980,1766,29989,2515,29977,1994,3251,582,1092,663,1137,957,1042,299,1272,1248,1704,577,1054,1059,29973,776,721,706,799,798,783,775]} 1. Nf3 {[%emt 0:00:02]} Nf6 {[%emt 0:00:04]} 2. b3 {[%emt 0:00:02]} c5 {[%emt 0:00:01]} 3. Bb2 {[%emt 0:00:02]} Nc6 {[%emt 0:00:00]} 4. e3 {[%emt 0:00:05]} g6 {[%emt 0:00:04]} 5. Nc3 {[%emt 0:00:10]} e5 $146 {[%emt 0:01:25]} ({Predecessor:} 5... Bg7 6. Ne4 d6 7. Nxf6+ exf6 8. Be2 Bd7 9. O-O O-O 10. d4 Qe7 11. Qd2 Rfd8 12. Rad1 {½-½ Fiorito,F (2370)-Valle Luis,L (2214) Sant Boi de Llobregat op 4th 2023 (9)}) 6. Bb5 {[%emt 0:00:08] A05: Réti Opening: 1 Nf3 Nf6.} Qe7 {[%emt 0:00:20]} 7. O-O {[%emt 0:00:32]} Bg7 {[%emt 0:00:14]} 8. d4 {[%emt 0:00:16]} e4 {[%emt 0:00:21]} 9. Nd2 {[%emt 0:00:14]} cxd4 {[%emt 0:01:34]} 10. Nc4 {[%emt 0:00:02]} O-O {[%emt 0:01:15]} 11. Ba3 {[%emt 0:02:40]} Nb4 {[%emt 0:01:37]} 12. Qxd4 {[%emt 0:01:08]} d5 {[%emt 0:00:03]} 13. Nb6 {[%emt 0:01:31]} Ng4 {[%emt 0:02:26]} 14. Qxb4 {[%emt 0:00:07]} Qh4 {[%emt 0:00:33]} 15. h3 {[%emt 0:00:11]} axb6 {[%emt 0:00:01]} 16. Nxd5 {[%emt 0:01:58]} Rxa3 {[%emt 0:00:02]} 17. Ne7+ {[%emt 0:00:46]} Kh8 {[%emt 0:00:01]} 18. Qxa3 {[%emt 0:00:01]} Be6 {[%emt 0:00:01]} 19. Qd6 {[%emt 0:00:19]} Ne5 {[%emt 0:00:07]} 20. Be2 {[%emt 0:00:06]} Re8 {[%emt 0:00:05]} 21. Rad1 {[%emt 0:00:09]} Bxh3 {[%emt 0:00:21]} 22. gxh3 {[%emt 0:00:01]} Qxh3 {[%emt 0:00:01]} 23. Nd5 {[%emt 0:00:04]} h5 {[%emt 0:00:07]} 24. Nf4 {[%emt 0:00:02]} Qh4 {[%emt 0:00:03]} 25. Qd5 {[%emt 0:00:12]} Kh7 {[%emt 0:00:03]} 26. Ng2 {[%emt 0:00:02]} Qg5 {[%emt 0:00:01]} 27. Qxe4 {[%emt 0:00:01]} Re6 {[%emt 0:00:03]} 28. Qf4 {[%emt 0:00:01]} Qe7 {[%emt 0:00:01]} 29. Qg3 {[%emt 0:00:00]} Bf6 {[%emt 0:00:03]} 30. Qh3 {[%emt 0:00:01]} Rc6 {[%emt 0:00:02]} 31. c4 {[%emt 0:00:01]} Bg7 {[%emt 0:00:01]} 32. Nf4 {[%emt 0:00:01]} Qg5+ {[%emt 0:00:01]} 33. Qg2 {[%emt 0:00:01]} Qh4 {[%emt 0:00:01]} 34. Rd4 {[%emt 0:00:05]} Qe7 {[%emt 0:00:02]} 35. Nd5 {[%emt 0:00:02]} Qe8 {[%emt 0:00:03]} 36. Re4 {[%emt 0:00:03]} Qd8 {[%emt 0:00:01]} 37. f4 {[%emt 0:00:02]} Nd7 {[%emt 0:00:02]} 38. f5 {[%emt 0:00:01]} Nc5 {[%emt 0:00:04]} 39. Ref4 {[%emt 0:00:03]} Be5 {[%emt 0:00:02]} 40. R4f3 {[%emt 0:00:04]} Kh6 {[%emt 0:00:02]} 41. Rh3 {[%emt 0:00:01]} Qe8 {[%emt 0:00:03]} 42. Kh1 {[%emt 0:00:01]} (42. Bxh5 $142 Kg7 43. Bxg6 (43. fxg6 fxg6 44. Bf3 Bf6 $18) 43... fxg6 44. Qg5 Kf7 45. fxg6+ Ke6 46. g7 Kd7 47. g8=Q (47. g8=B Rg6 $18)) 42... Bb8 {[%emt 0:00:02]} 43. Bf3 {[%emt 0:00:05]} (43. Bxh5 $142 Kg7 44. Bxg6 fxg6 45. f6+ Kf8 46. Rh8+ Kf7 47. Rxe8 Re6 48. Re7+ (48. Rxb8 Re5 49. Nf4 g5 50. Rxb7+ Nd7 51. Rxd7+ Ke8 52. Qc6 Kf8 53. Ng6+ Kg8 54. Rg7#) 48... Rxe7 49. fxe7+ Bf4 50. Rxf4+ (50. Nxf4 Kxe7 51. Nd5+ Kd7 52. Rf7+ Ke8 53. Qxg6 Nd7 54. Qg8+ Nf8 55. Qxf8#) 50... Kg7 51. Qb2+ (51. e8=R Nd7 52. Re7+ Kh8 53. Qh3+ Kg8 54. Qh7#) (51. e8=N+ Kh8 52. Qh3+ Kg8 53. Ne7#) 51... Kh6 52. Qh8+ Kg5 53. Qh4#) 43... Qe5 {[%emt 0:00:01]} 44. Rg1 {[%emt 0:00:04]} (44. Bxh5 $142 gxh5 45. Rxh5+ (45. Nf4 Qxf5 46. Rxh5+ Qxh5+ 47. Nxh5 Rg6 48. Qh3 Rg5 49. Nf6+ Kg7 50. Qh7+ Kf8) 45... Kxh5 46. Qh3+ Kg5 47. Rg1+ Qg3 48. Rxg3+ Bxg3 49. Qxg3+ Kxf5 50. Qf4+ Kg6 51. Ne7+ Kg7 52. Qg5+ (52. Nxc6 bxc6 53. Qd6 Ne6 $18) 52... Kh7 53. Nf5) 44... Qxf5 {[%emt 0:00:01]} 45. Bg4 {[%emt 0:00:01]} Qe5 {[%emt 0:00:01]} 46. Bd1 {[%emt 0:00:01]} Re6 {[%emt 0:00:01]} 47. Bc2 {[%emt 0:00:01]} Kg7 {[%emt 0:00:04] [#]} 48. Qg3 $2 {[%emt 0:00:04]} (48. Nf4 $1) 48... Qb2 $2 {[%emt 0:00:03]} (48... Qxg3 49. Rgxg3 (49. Rhxg3 Bxg3 50. Rxg3 Rd6 $18) 49... Bxg3) 49. Qxb8 $18 {[%emt 0:00:01]} Qxc2 {[%emt 0:00:01]} 50. Qh2 {[%emt 0:00:00]} Qd3 {[%emt 0:00:02]} 51. Qb2+ {[%emt 0:00:01]} Kg8 {[%emt 0:00:02]} 52. Nf4 {[%emt 0:00:03]} (52. Rxh5 $142 Qe4+ 53. Kh2 Qe5+ 54. Rxe5 Nd3 55. Rxe6 Nxb2 56. Rxb6 Kg7 57. Rxb7) 52... Qe4+ $18 {[%emt 0:00:01]} 53. Qg2 {[%emt 0:00:01]} Rd6 {[%emt 0:00:02]} 54. Qxe4 {[%emt 0:00:01]} Nxe4 {[%emt 0:00:00]} 55. Rxh5 {[%emt 0:00:02]} 1-0